Cogmind - Beta 17.1 @@@ ROGUE MODE // 2026.09.07 @ 20:33:42 Player: C0GU55Y Result: Destroyed by G-50 Soldier with Heavy Laser Performance ------------- Evolutions (1) 500 Regions Visited (6) 1200 Robots Destroyed (31) 155 Value Destroyed (669) 669 Prototype IDs (23) 460 Alien Tech Used (0) 0 Bonus (300) 300 TOTAL SCORE: 3284 Bonus ------- Aligned with FarCom 300 Cogmind --------- Core Integrity 0/400 Matter 224/300 Energy 98/100 System Corruption 0% Temperature Cool (9) Movement Core (50) Location -8/Mines Parts ------- > --- POWER (1) -------- (None) > --- PROPULSION (3) --- Carbon-fiber Leg > --- UTILITY (3) ------ Improved Sensor Array Improved Targeting Computer > --- WEAPON (2) ------- Makeshift Spear > --- INVENTORY (5) ---- Deuterium Engine Supersonic Drone Bay (1/1) Particle Gun Gauss Rifle Rocket Launcher Peak State ------------ > --- POWER ------------ (None) > --- PROPULSION ------- Carbon-fiber Leg Wheel > --- UTILITY ---------- Improved Sensor Array Improved Targeting Computer Improved Targeting Computer > --- WEAPON ----------- Rocket Launcher Makeshift Spear > --- INVENTORY -------- Deuterium Engine Supersonic Drone Bay Particle Gun Gauss Rifle [Rating: 18] Favorites ----------- Power Ion Engine Engine Ion Engine Propulsion Wheel Treads Light Treads Leg Carbon-fiber Leg Wheel Wheel Utility Improved Targeting Computer Device Improved Sensor Array Storage High-capacity Storage Unit Processor Improved Targeting Computer Protection Light Armor Plating Weapon Assault Rifle Energy Gun Medium Laser Ballistic Gun Assault Rifle Launcher Grenade Launcher Special Weapon Mining Laser Piercing Weapon Makeshift Spear Build | -11 -10 -10 -9 -9 -9 -8 ------- Run | Yrd Mat Min Mat Min Exi Min Slots Evolved 2 | . . . 2 . . . Power . | . . . . . . . Propulsion 1 | . . . 1 . . . Utility 1 | . . . 1 . . . Weapon . | . . . . . . . Parts Attached 32 | 8 14 3 3 1 . 3 Power 2 | 1 1 . . . . . Engine 2 | 1 1 . . . . . Core . | . . . . . . . Reactor . | . . . . . . . Propulsion 10 | 2 6 . . 1 . 1 Treads 1 | 1 . . . . . . Leg 1 | . . . . . . 1 Wheel 8 | 1 6 . . 1 . . Hover . | . . . . . . . Flight . | . . . . . . . Utility 10 | 2 4 1 3 . . . Device 3 | 1 1 . 1 . . . Storage 2 | 1 1 . . . . . Processor 2 | . . . 2 . . . Hackware . | . . . . . . . Protection 3 | . 2 1 . . . . Artifact . | . . . . . . . Weapon 10 | 3 3 2 . . . 2 Energy Gun 2 | 2 . . . . . . Energy Cannon . | . . . . . . . Ballistic Gun 3 | 1 1 1 . . . . Ballistic Cannon . | . . . . . . . Launcher 3 | . 1 1 . . . 1 Special Weapon 1 | . 1 . . . . . Impact Weapon . | . . . . . . . Slashing Weapon . | . . . . . . . Piercing Weapon 1 | . . . . . . 1 Special Melee Weapon . | . . . . . . . Unidentified Prototypes . | . . . . . . . Parts Lost 9 | . 5 1 1 . . 2 Power 1 | . 1 . . . . . Propulsion 3 | . 2 . . . . 1 Utility 3 | . 1 . 1 . . 1 Weapon 2 | . 1 1 . . . . Highest Loss Streak 5 | . 5 1 1 . . 2 To Critical Strikes . | . . . . . . . Average Backups 9 | 4 15 11 4 5 5 4 Power 1 | . 1 1 1 1 1 1 Propulsion 2 | 2 4 2 1 . . . Utility 2 | . 3 3 . 1 1 1 Weapon 3 | 1 5 3 2 2 3 2 Tool/Special . | . . . . . . . Unused Backups 18 | . . 10 2 1 1 4 Power 3 | . . 1 1 . . 1 Propulsion 3 | . . 3 . . . . Utility 6 | . . 4 . . 1 1 Weapon 5 | . . 1 1 1 . 2 Tool/Special 1 | . . 1 . . . . Average Slot Usage (%) 61 | . 97 55 23 34 44 52 Engine 5 | . 13 6 . . . . Wheel 14 | . 26 13 . 1 11 8 Device 11 | . 9 13 6 11 11 11 Storage 5 | . 14 6 . . . . Processor 9 | . . . 17 22 22 19 Protection 1 | . 3 . . . . . Energy Gun 5 | . 14 6 . . . . Ballistic Gun 4 | . 12 1 . . . . Launcher 1 | . . 4 . . . . Piercing Weapon 1 | . . . . . . 8 Peak Build Rating 18 | 7 9 9 8 9 9 18 Average Rating 8 | 5 8 4 5 8 9 12 On Entrance 6 | . 7 9 1 8 9 9 Avg Prop Armor Cover (%) 21 | 13 13 . . 21 21 24 Naked Turns 20 | . . 20 . . . . Heaviest Build 52 | 14 52 52 1 1 1 3 Greatest Support 20 | 10 20 20 3 3 3 3 Greatest Overweight (x) 2 | 1 2 2 . . . . Average Overweight (x) . | . 1 . . . . . Largest Inventory Capacity 20 | 8 20 20 5 5 5 5 Average Capacity 10 | 7 19 12 5 5 5 5 Most Carried 20 | 7 20 20 5 5 5 5 Average Carried 9 | 4 15 12 4 4 4 4 Final Capacity 20 | 8 20 5 5 5 5 5 Final Carried 20 | 7 20 5 5 5 5 5 Class Distribution -------------------- 81% | Mutant 18% | Scout Dominant Class ---------------- Mutant | -10/Materials Mutant | -10/Mines Mutant | -9/Materials Mutant | -9/Mines Mutant | -9/Exiles Scout | -8/Mines Resources | -11 -10 -10 -9 -9 -9 -8 ----------- Run | Yrd Mat Min Mat Min Exi Min Matter Collected 938 | 290 233 272 . 25 . 118 Remotely . | . . . . . . . Salvage Created 853 | 195 478 36 . . . 144 Parts 58 | 13 29 . . . . 16 Haulers Intercepted 1 | . 1 . . . . . Recyclers Shooed 1 | . 1 . . . . . Parts Field Recycled . | . . . . . . . Retrieved Matter . | . . . . . . . Parts Self-Destructed . | . . . . . . . Prevented . | . . . . . . . Parts Restored . | . . . . . . . Kills | -11 -10 -10 -9 -9 -9 -8 ------- Run | Yrd Mat Min Mat Min Exi Min Combat Hostiles Destroyed 28 | . 10 8 . . . 10 Melee 1 | . . . . . . 1 Guns 6 | . 6 . . . . . AOE 21 | . 4 8 . . . 9 Classes Destroyed 10 | 2 5 1 . . . 2 Worker 1 | . 1 . . . . . Builder 2 | . 1 . . . . 1 Tunneler 5 | 5 . . . . . . Hauler 1 | . 1 . . . . . Recycler 1 | 1 . . . . . . Watcher 1 | . 1 . . . . . Swarmer 8 | . . . . . . 8 Grunt 10 | . 10 . . . . . Hunter 2 | . . . . . . 2 Assembled 8 | . . 8 . . . . Best Kill Streak 11 | 5 9 8 . . . 11 Combat Bots Only 9 | . 5 8 . . . 9 Max Kills in Single Turn 3 | 1 2 3 . . . 2 Gunslinging . | . . . . . . . Exploded 3 | . 1 3 . . . 2 Melee 1 | . . . . . . 1 Uniques/NPCs Destroyed . | . . . . . . . Combat | -11 -10 -10 -9 -9 -9 -8 -------- Run | Yrd Mat Min Mat Min Exi Min Hostile Shots Fired 155 | . 57 38 24 5 . 31 Missed 52 | . 19 14 9 2 . 8 Hits 103 | . 38 24 15 3 . 23 Melee 2 | . . 2 . . . . Projectile 101 | . 38 22 15 3 . 23 Critical Strikes 3 | . 2 . 1 . . . Damage Taken 1635 | 66 573 386 217 39 . 354 Core 625 | . 74 137 193 39 . 182 Absorbed by Shields . | . . . . . . . Core Remaining (%) 57 | 100 . 15 . . . . Volleys Fired 72 | 10 40 8 . . . 14 Largest 2 | 2 2 2 . . . 1 Hottest 100 | 70 100 60 . . . 33 Shots Fired 119 | 20 75 10 . . . 14 Gun 95 | 20 70 5 . . . . Cannon . | . . . . . . . Launcher 23 | . 4 5 . . . 14 Special 1 | . 1 . . . . . Kinetic 45 | 10 33 2 . . . . Thermal 33 | 1 32 . . . . . Explosive 23 | . 4 5 . . . 14 Electromagnetic 18 | 9 6 3 . . . . Robot Hit Streak 10 | 8 10 7 . . . 4 Robot Miss Streak 3 | 1 3 2 . . . 3 Penetration Max . | . . . . . . . Secondary Targets . | . . . . . . . Shots Hit Robots 73 | 13 46 5 . . . 9 Core Hits 62 | 8 28 16 . . . 10 Critical Kills . | . . . . . . . Critical Parts Destroyed . | . . . . . . . Critical Strikes 2 | . 2 . . . . . Burn 2 | . 2 . . . . . Melee Attacks 6 | . . . . . . 6 Impact . | . . . . . . . Slashing . | . . . . . . . Piercing 6 | . . . . . . 6 Sneak Attacks 1 | . . . . . . 1 Combat Hostiles . | . . . . . . . Follow-up Attacks . | . . . . . . . Damage Inflicted 2245 | 189 880 481 . . . 695 Guns 707 | 129 551 27 . . . . Cannons . | . . . . . . . Explosions 1394 | 60 329 454 . . . 551 Melee 144 | . . . . . . 144 Ramming . | . . . . . . . Kinetic 314 | 35 264 15 . . . . Thermal 363 | 72 291 . . . . . Explosive 1266 | . 261 454 . . . 551 Electromagnetic 158 | 82 64 12 . . . . Impact . | . . . . . . . Slashing . | . . . . . . . Piercing 144 | . . . . . . 144 Highest Corruption . | . . . . . . . Average Corruption . | . . . . . . . Corruption Purged . | . . . . . . . Corruption Blocked . | . . . . . . . Overload Shots . | . . . . . . . Overflow Damage 43 | . 6 2 . . . 35 Projectiles . | . . . . . . . Explosions 11 | . 6 2 . . . 3 Melee 32 | . . . . . . 32 Knockbacks . | . . . . . . . Impact . | . . . . . . . Kinetic . | . . . . . . . Secondary . | . . . . . . . Self-Inflicted Damage 258 | 66 54 . . . . 138 Shots 8 | 2 2 . . . . 4 Rammed . | . . . . . . . Targets Rammed . | . . . . . . . Kicked . | . . . . . . . Crushed . | . . . . . . . Highest Temperature 304 | 32 304 18 . . . 4 Average Temperature 70 | 17 82 10 . . . 4 Received Heat Transfer 450 | . 333 . 84 24 . 9 Effects 1 | . 1 . . . . . Interference 1 | . 1 . . . . . Siege Activations . | . . . . . . . Martial Activations . | . . . . . . . Shielding Activations . | . . . . . . . Robots Disrupted . | . . . . . . . Combat Hostiles . | . . . . . . . Robots Corrupted . | . . . . . . . Combat Hostiles . | . . . . . . . Parts Fried . | . . . . . . . Impact Corruptions . | . . . . . . . Robots Melted . | . . . . . . . Combat Hostiles . | . . . . . . . Parts Melted 2 | . 2 . . . . . Heat Transferred 1051 | 137 914 . . . . . Parts Sabotaged . | . . . . . . . Parts Stolen . | . . . . . . . Parts Stripped . | . . . . . . . Power Chain Reactions 3 | 2 1 . . . . . Alert | -11 -10 -10 -9 -9 -9 -8 ------- Run | Yrd Mat Min Mat Min Exi Min Maximum Alert Level 1 | . . . . . . 1 Low Security (%) 94 | 100 100 100 100 100 . 74 Level 1 5 | . . . . . . 25 Level 2 . | . . . . . . . Level 3 . | . . . . . . . Level 4 . | . . . . . . . Level 5 . | . . . . . . . High Security . | . . . . . . . Max Security . | . . . . . . . Peak Influence 294 | 10 157 48 15 45 . 294 Initial 48 | . . 48 . 1 . . Average 34 | 1 48 7 2 14 . 79 Influence Increases 926 | 30 363 53 28 75 . 377 Destroy 0b10 Robot/C 400 | . 200 . . . . 200 Destroy 0b10 Robot/NC 55 | 30 20 . . . . 5 Destroy Leader 104 | . 64 . . . . 40 Successful Hack 13 | . . . 13 . . . Disable Machine 45 | . 45 . . . . . Destroy Structure 129 | . 4 23 . . . 102 Lose Combat Pursuer 180 | . 30 30 15 75 . 30 Influence Decreases 642 | 30 238 178 23 80 . 93 Entered New Map 81 | . . 77 . 4 . . Time Decay 478 | 30 188 91 20 76 . 73 Lost Part 83 | . 50 10 3 . . 20 Squads Dispatched 3 | . 3 . . . . . Investigation 2 | . 2 . . . . . Extermination . | . . . . . . . Reinforcement 1 | . 1 . . . . . Assault . | . . . . . . . Garrison . | . . . . . . . Intercept . | . . . . . . . Searches Triggered . | . . . . . . . Construction Impeded . | . . . . . . . Haulers Reinforced . | . . . . . . . Active Scanning Responses . | . . . . . . . Cargo Convoy Interrupts . | . . . . . . . Stealth | -11 -10 -10 -9 -9 -9 -8 --------- Run | Yrd Mat Min Mat Min Exi Min Distress Signals 1 | . . . 1 . . . Communications Jammed . | . . . . . . . Distress Signals . | . . . . . . . Times Spotted 65 | . 16 26 6 4 . 13 Peak Tracking Total 20 | . 5 20 7 3 . 4 Tactical Retreats 10 | . 2 4 1 2 . 1 Traps | -11 -10 -10 -9 -9 -9 -8 ------- Run | Yrd Mat Min Mat Min Exi Min Traps Triggered 2 | . 2 . . . . . Indirectly . | . . . . . . . Trap Hack Attempts . | . . . . . . . Triggered . | . . . . . . . Disarmed . | . . . . . . . Reprogrammed . | . . . . . . . Reused . | . . . . . . . Traps Extracted . | . . . . . . . Installed 1 | . . . 1 . . . Triggered . | . . . . . . . Most Traps Carried 1 | . . 1 1 . . . Machines | -11 -10 -10 -9 -9 -9 -8 ---------- Run | Yrd Mat Min Mat Min Exi Min Machines Disabled 3 | . 3 . . . . . Max in Single Turn 1 | . 1 . . . . . Machines Repaired . | . . . . . . . Machines Dismantled . | . . . . . . . Machines Sabotaged . | . . . . . . . Overloaded Fab Kills . | . . . . . . . Hacking | -11 -10 -10 -9 -9 -9 -8 --------- Run | Yrd Mat Min Mat Min Exi Min Machines Accessed 6 | . 3 . 1 . 2 . Terminals 4 | . 3 . 1 . . . Fabricators . | . . . . . . . Repair Stations . | . . . . . . . Recycling Units . | . . . . . . . Scanalyzers . | . . . . . . . Garrison Access . | . . . . . . . Total Hacks 15 | . 5 . 5 . 5 . Successful 9 | . 1 . 3 . 5 . Failed 6 | . 4 . 2 . . . Catastrophic 1 | . 1 . . . . . Database Lockouts . | . . . . . . . Manual 3 | . 1 . 1 . 1 . Terminals 10 | . 5 . 5 . . . Fabricators . | . . . . . . . Repair Stations . | . . . . . . . Recycling Units . | . . . . . . . Scanalyzers . | . . . . . . . Garrison Access . | . . . . . . . Terminal Hacks 8 | . 1 . 2 . 5 . Record 4 | . . . . . 4 . Branch Access Points 1 | . 1 . . . . . Locate Traps 1 | . . . 1 . . . Dispatch Records 1 | . . . 1 . . . Proto ID Catalog 1 | . . . . . 1 . Fabricator Hacks . | . . . . . . . Repair Station Hacks . | . . . . . . . Recycling Unit Hacks . | . . . . . . . Scanalyzer . | . . . . . . . Garrison Access Hacks . | . . . . . . . Unauthorized Hacks 1 | . . . 1 . . . Terminals 1 | . . . 1 . . . Botnet 1 | . . . 1 . . . Fabricators . | . . . . . . . Repair Stations . | . . . . . . . Recycling Units . | . . . . . . . Scanalyzers . | . . . . . . . Garrison Access . | . . . . . . . Data Cores Recovered . | . . . . . . . Used . | . . . . . . . Hacking Detections 4 | . 3 . 1 . . . Full Trace Events . | . . . . . . . Feedback Events . | . . . . . . . Feedback Blocked . | . . . . . . . Robot Schematics Acquired . | . . . . . . . Robots Built . | . . . . . . . Authchips . | . . . . . . . Time . | . . . . . . . Total Robot Build Rating . | . . . . . . . Part Schematics Acquired . | . . . . . . . Parts Built . | . . . . . . . Authchips . | . . . . . . . Time . | . . . . . . . Total Part Build Rating . | . . . . . . . Part Studies Acquired . | . . . . . . . Parts Repaired . | . . . . . . . Time . | . . . . . . . Parts Recycled . | . . . . . . . Recycled Matter . | . . . . . . . Retrieved Matter . | . . . . . . . Retrieved Components . | . . . . . . . Parts Scanalyzed . | . . . . . . . Part Schematics Acquired . | . . . . . . . Parts Damaged . | . . . . . . . Bothacking | -11 -10 -10 -9 -9 -9 -8 ------------ Run | Yrd Mat Min Mat Min Exi Min Used RIF Installer . | . . . . . . . Robots Hacked . | . . . . . . . Non-combat . | . . . . . . . Combat . | . . . . . . . Robot Hacks Applied . | . . . . . . . Relay Couplers Released . | . . . . . . . Fabnet Peak Effective % . | . . . . . . . Robots Rewired . | . . . . . . . Allies Hacked . | . . . . . . . Hacks Repelled . | . . . . . . . Allies | -11 -10 -10 -9 -9 -9 -8 -------- Run | Yrd Mat Min Mat Min Exi Min Total Allies . | . . . . . . . Largest Group . | . . . . . . . Highest-Rated Group . | . . . . . . . Highest-Rated Ally . | . . . . . . . Total Orders . | . . . . . . . Ally Attacks . | . . . . . . . Total Damage . | . . . . . . . Kills . | . . . . . . . Allies Corrupted . | . . . . . . . Allies Melted . | . . . . . . . Intel | -11 -10 -10 -9 -9 -9 -8 ------- Run | Yrd Mat Min Mat Min Exi Min Active Infowar (turns) 1692 | 20 372 472 38 220 192 378 Sensors 1101 | . 63 231 17 220 192 378 Seismic 591 | 20 309 241 21 . . . Robot Analysis Total . | . . . . . . . Derelict Logs Recovered 3 | . . 2 . 1 . . Drone Launches . | . . . . . . . Drone Recoveries . | . . . . . . . Exploration | -11 -10 -10 -9 -9 -9 -8 ------------- Run | Yrd Mat Min Mat Min Exi Min Turns Passed 2047 | 152 538 504 63 220 192 378 Spaces Moved 2366 | 113 303 708 103 338 380 421 Core 1757 | 2 . 513 103 338 380 421 Treads . | . . . . . . . Legs . | . . . . . . . Wheels 609 | 111 303 195 . . . . Hover . | . . . . . . . Flight . | . . . . . . . Fastest Speed 50 | 50 95 50 50 50 50 50 Average Speed 64 | 92 109 66 50 50 50 50 Slowest Speed 110 | 100 110 110 50 50 50 50 Overloaded Moves . | . . . . . . . Propulsion Burnouts . | . . . . . . . Robots Hopped . | . . . . . . . Potential Cave-ins . | . . . . . . . Cave-ins Triggered . | . . . . . . . Exploration Rate (%) 56 | 3 52 98 14 62 88 80 Regions Visited 6 Branch Regions 4 Pre-discovered Areas 2 | . . 1 . . 1 . Known Exits Taken 1 | . 1 . . . . . Unknown Exits Taken 5 | 1 . 1 1 1 1 . Scrap Searched 4 | . . 2 . 1 . 1 Spaces Dug 3 | . . . . . . 3 Terrain Destroyed 200 | 6 4 44 . . . 146 Melee 3 | . . . . . . 3 Projectile . | . . . . . . . AOE 197 | 6 4 44 . . . 143 Terrain Rammed . | . . . . . . . Walls Destroyed . | . . . . . . . Machines Disabled . | . . . . . . . Actions | -11 -10 -10 -9 -9 -9 -8 --------- Run | Yrd Mat Min Mat Min Exi Min Total 2749 | 137 427 732 115 388 381 569 Wait 219 | . 48 2 1 47 . 121 Move 2360 | 112 302 707 102 337 379 421 Hop . | . . . . . . . Pick Up 34 | 7 15 4 4 2 1 1 Fast Attach 14 | 7 2 1 3 . . 1 Attach 10 | . 4 2 . 1 . 3 Detach 4 | . 1 1 . . . 2 Swap 16 | 1 12 3 . . . . Drop 13 | . 3 4 4 1 1 . Fire 72 | 10 40 8 . . . 14 Melee 6 | . . . . . . 6 Ram . | . . . . . . . Kick . | . . . . . . . Crush . | . . . . . . . Escape Stasis . | . . . . . . . Rewire . | . . . . . . . Trap 1 | . . . 1 . . . Miscellaneous . | . . . . . . . Route ------- -11/Scrapyard -10/Materials (discovered 3 exits: *Mat / *Min x2) -10/Mines (discovered 2 exits: *Mat x2) -9/Materials -9/Mines (discovered 2 exits: [*Mat] / *Exi) -9/Exiles -8/Mines (discovered 1 exit: [*Mat]) History --------- Turn | Location | Event 9 | -11/Scrapyard | Discovered new exit (range 15) 153 | -11/Scrapyard | Entered Materials 304 | -10/Materials | Build established: Mutant 329 | -10/Materials | Discovered new exit (range 9) 349 | -10/Materials | Discovered new exit (range 13) 444 | -10/Materials | Discovered new exit (range 16) 628 | -10/Materials | Lost 5 parts (1p2n1u1w) 647 | -10/Materials | Identified exit to Mines 691 | -10/Materials | Entered Mines 712 | -10/Mines | Discovered new exit (range 16) 816 | -10/Mines | Learned Materials terminal intel 819 | -10/Mines | Discovered new exit (range 12) 889 | -10/Mines | Found DCF Scrap (14 items) 907 | -10/Mines | Assembled infested the area 921 | -10/Mines | Core integrity fell below 50% 934 | -10/Mines | Released all parts (7) 936 | -10/Mines | Core integrity fell below 20% 955 | -10/Mines | Destroyed 8 combat bots 1051 | -10/Mines | Found a hidden stash of uninstalled traps 1098 | -10/Mines | Learned location of Zion (-7) 1195 | -10/Mines | Entered Materials 1195 | -9/Materials | Evolved 2 slots: Propulsion x1, Utility x1 1196 | -9/Materials | Loaded intel: 11 terminal locations 1238 | -9/Materials | Discovered new exit (range 7) 1258 | -9/Materials | Entered Mines 1260 | -9/Mines | Core integrity fell below 50% 1296 | -9/Mines | Learned 2 Materials zone layouts 1360 | -9/Mines | A weapon hastily lodged in a ceiling crevice suddenly fell to the ground 1373 | -9/Mines | Deemed a non-threat by the Exiles lab entrance 1373 | -9/Mines | Discovered new exit (range 5) 1433 | -9/Mines | Discovered new exit (range 10) 1440 | -9/Mines | Received a Rocket Launcher from a helpful Derelict 1478 | -9/Mines | Entered Exiles 1492 | -9/Exiles | Met 8R-AWN 1500 | -9/Exiles | Met EX-HEX 1529 | -9/Exiles | Met EX-DEC 1539 | -9/Exiles | Visited The Gauntlet 1600 | -9/Exiles | Met EX-BIN 1607 | -9/Exiles | Aligned with FarCom system 1607 | -9/Exiles | Given EX-Vault access code 1619 | -9/Exiles | Opened EX-Vault 1623 | -9/Exiles | Found Supersonic Drone Bay 1633 | -9/Exiles | Warned to stay clear of 0b10 Research branches 1666 | -9/Exiles | Discovered new exit (range 10) 1670 | -9/Exiles | Left Exiles lab with Supersonic Drone Bay 1670 | -9/Exiles | Entered Mines 1951 | -8/Mines | Core integrity fell below 20% 1986 | -8/Mines | Destroyed 9 combat bots 1988 | -8/Mines | Build established: Scout 2006 | -8/Mines | Found a Scrap Suit stashed away for nefarious purposes 2048 | -8/Mines | Discovered new exit (range 14) 2048 | -8/Mines | Destroyed by G-50 Soldier with Heavy Laser Last Messages --------------- 01975_ The unstable cave ceiling collapses. 01975_ Acquired 32 matter. 01976_ Acquired 44 matter. 01978_ U-05 Engineer builds a Wall. 01979_ The unstable cave ceiling collapses. 01979_ Acquired 2 matter. 01979_ U-05 Engineer lays Concrete. 01982_ The unstable cave ceiling collapses. 01982_ U-05 Engineer lays Concrete. 01986_ U-05 Engineer builds a Wall. 02006_ A message is left with an item here: "H4-X0R! I managed to smuggle one out! Take this to the hideout, the fools near Old Recycling think they can use this tech to beat 0b10 one day, and now we just have to find a way to safely deliver this to MAIN.C to get on their good side and convince them to let us into the system." 02032_ K-01 Serf collects debris. 02048_ EXIT=FOUND Map ----- +----------------------------------------------------+ | ##??####???????????????????????????? | | # #### ####????????????????????????? | | # ### ## ##???????????????????????? | | #?## ##??????????????????????? | | #??## #??????????????????????? | | ####???# #??????????????????????? | | #??????# ##??????????????????????? | | #??????# ##??????????????????????? | | ###????## #??????????????????????? | | #?????## #??????????????????????? | | # #??????## #??????????????????????? | | # #???##??## #####??????????????????????? | | ### ##??## #??????????????????????????? | | #???## #??????????????????????????? | | #????# #??????????????????????????? | | """ #????# ###????????????????????????? | | """ ##????# #????????????????????????? | | # """ ##?????## #????????????????????????? | | # #???????### ######???????????????????? | | ## #?????????# #???????????????????? | | ?# ##?????????# #???????????????????? | | ? #??????????##### #?????????????gg ???? | | ?# ##??????????????# #???????## # g ???? | | ??###???????????????# ###### ???? | | ??????###???????????# k #?????????? | | ????################# @ #?????????? | | ????# ######## ##?????????? | | ???## ##?????? #??????????? | | ???## #???????? ##??????????? | | ???## """ """ """ #???????? ##???????????? | | ????# """ """ """ #?????????###????????????? | | ????# """ """ """ #??????????########??????? | | ????# %! #????????## ???????? | | ????# """ """ """ #????????# #?????????? | | ????# """ """ """ #???????## #?????????? | | ????# """ """ """ ######### s #??????????? | | ????# ss s #???????????? | | ????########### s## ## ##### s##???????????? | | ??????????????# ## ## #???# ##????????????? | | ?????########## ## ## #???# #??########???? | | #????#!%! s## ## ##### #?## ##??? | | #????# ########### ## #?# """" #??? | | ?????# #????????# ####### ### """" #??? | | ?????# #????????# ##???# """" #??? | | ????## ##???????# #???##### #??? | | ???## ##??????## #???????# #??? | | ???# ##??????## ######??## ##??? | | ???# ####????# ## ##??## ##???? | | ???## ##???# ##??## #????? | | ????## #???# #???# #????? | +----------------------------------------------------+ Best States ------------- Heat Dissipation 28 Energy Generation 10 Energy Capacity 250 Matter Stores 300 Matter Capacity 300 Sight Range 16 Robot Scan Range 15 Terrain Scan Density 10 Armor Coverage 150 Evasion (%) 50 Targeting Accuracy 12 Recoil Reduction 1 Item Schematics ----------------- None Robot Schematics ------------------ None Fabricated ------------ Nothing Repaired ---------- Nothing Studied --------- None Alien Tech Used ----------------- None Achievements -------------- None Challenges ------------ None Game ------ Seed MiningVariableFocus Manual? 0 Play Time 00:27:00 Cumulative 134.2 hours Start 2026.09.07 @ 20:09:42 End 2026.09.07 @ 20:33:42 Sessions 1 Manual Loads 0 Difficulty Rogue Special Mode None Game No. 154 Rogue 154 Adventurer 0 Explorer 0 Win Type - Total 0 Types 0/0/0/0/0/0/0/0/0/0 Lore% 65 Gallery% 51 Achievement% 35 Wizard Run 0 Options --------- Layout 1 ASCII 0 Keyboard 0 Movement Mouse Keybinds 0 Fullscreen 1 Font 24/Smallcaps Map View 50x35 Zoom Use 0% Tactical HUD 1 Map Filters NONE Filters NONE Steam 1 RUN: eb2e2cac-d2ce-4dba-8e33-6e3f7870dd06